Cogmind - Beta 15 @@@ ROGUE MODE // 2025.07.04 @ 20:21:23 Player: beans Result: Destroyed by P2-SLA(R) with Subdweller Machine Gun Performance ------------- Evolutions (0) 0 Regions Visited (2) 400 Robots Destroyed (28) 140 Value Destroyed (623) 623 Prototype IDs (2) 40 Alien Tech Used (0) 0 Bonus (-5) -5 TOTAL SCORE: 1198 Bonus ------- Friendly Fire -5 Cogmind --------- Core Integrity 0/250 Matter 295/300 Energy 73/100 System Corruption 0% Temperature Cool (0) Movement Core (100) Ox1 Location -10/Subcaves Parts ------- > --- POWER (1) -------- (None) > --- PROPULSION (2) --- (None) > --- UTILITY (2) ------ Improved Targeting Computer Improved Targeting Computer > --- WEAPON (2) ------- Spread Laser Spread Laser > --- INVENTORY (5) ---- Improved Targeting Computer Improved Targeting Computer Heavy EM Pulse Gun Assault Rifle Peak State ------------ > --- POWER ------------ Ion Engine > --- PROPULSION ------- Light Treads Light Treads > --- UTILITY ---------- Improved Targeting Computer Improved Targeting Computer > --- WEAPON ----------- Spread Laser Spread Laser > --- INVENTORY -------- Small Laser Small Laser Assault Rifle [Rating: 11] Favorites ----------- Power Ion Engine Engine Ion Engine Propulsion Light Treads Treads Light Treads Flight Unit Flight Unit Utility Improved Targeting Computer Processor Improved Targeting Computer Weapon Spread Laser Energy Gun Spread Laser Ballistic Gun Assault Rifle Build | -11 -10 -10 ------- Run | Yrd Mat Sub Slots Evolved . | . . . Power . | . . . Propulsion . | . . . Utility . | . . . Weapon . | . . . Parts Attached 11 | 5 5 1 Power 1 | 1 . . Engine 1 | 1 . . Core . | . . . Reactor . | . . . Propulsion 3 | 2 . 1 Treads 2 | 2 . . Leg . | . . . Wheel . | . . . Hover . | . . . Flight 1 | . . 1 Utility 2 | . 2 . Device . | . . . Storage . | . . . Processor 2 | . 2 . Hackware . | . . . Protection . | . . . Artifact . | . . . Weapon 5 | 2 3 . Energy Gun 4 | 1 3 . Energy Cannon . | . . . Ballistic Gun 1 | 1 . . Ballistic Cannon . | . . . Launcher . | . . . Special Weapon . | . . . Impact Weapon . | . . . Slashing Weapon . | . . . Piercing Weapon . | . . . Special Melee Weapon . | . . . Unidentified Prototypes . | . . . Parts Lost 5 | . 1 4 Power 1 | . 1 . Propulsion 3 | . . 3 Utility . | . . . Weapon 1 | . . 1 Highest Loss Streak 3 | . 1 3 To Critical Strikes . | . . . Average Backups 3 | . 3 4 Power . | . . . Propulsion . | . . . Utility 1 | . 1 2 Weapon 2 | . 2 2 Tool/Special . | . . . Unused Backups 4 | . 1 3 Power . | . . . Propulsion . | . . . Utility 2 | . . 2 Weapon 2 | . 1 1 Tool/Special . | . . . Average Slot Usage (%) 81 | . 84 71 Engine 9 | . 13 . Treads 23 | . 28 9 Flight 1 | . . 5 Processor 17 | . 14 28 Energy Gun 26 | . 25 27 Ballistic Gun 1 | . 2 . Peak Build Rating 11 | 5 11 10 Average Rating 8 | 3 8 9 On Entrance 5 | . 5 10 Naked Turns . | . . . Heaviest Build 11 | 8 11 6 Greatest Support 40 | 40 40 20 Greatest Overweight (x) 1 | . . 1 Average Overweight (x) . | . . . Largest Inventory Capacity 5 | 5 5 5 Average Capacity 5 | 5 5 5 Most Carried 5 | 3 5 5 Average Carried 3 | . 3 4 Final Capacity 5 | 5 5 5 Final Carried 5 | . 5 4 Class Distribution -------------------- 100% | Mutant Dominant Class ---------------- Mutant | -10/Materials Mutant | -10/Subcaves Resources | -11 -10 -10 ----------- Run | Yrd Mat Sub Matter Collected 319 | 204 105 10 Remotely . | . . . Salvage Created 743 | . 713 30 Parts 50 | . 48 2 Haulers Intercepted . | . . . Recyclers Shooed . | . . . Parts Field Recycled . | . . . Retrieved Matter . | . . . Parts Self-Destructed . | . . . Prevented . | . . . Kills | -11 -10 -10 ------- Run | Yrd Mat Sub Combat Hostiles Destroyed 16 | . 15 1 Guns 14 | . 13 1 AOE 2 | . 2 . Classes Destroyed 10 | . 9 1 Worker 2 | . 2 . Builder 4 | . 4 . Tunneler 1 | . 1 . Recycler 1 | . 1 . Mechanic 1 | . 1 . Operator 1 | . 1 . Watcher 2 | . 2 . Swarmer 3 | . 3 . Grunt 12 | . 12 . Subdweller 1 | . . 1 Best Kill Streak 8 | . 8 1 Combat Bots Only 5 | . 5 1 Max Kills in Single Turn 2 | . 2 1 Gunslinging 1 | . 1 . Exploded 2 | . 2 . Melee . | . . . Uniques/NPCs Destroyed . | . . . Combat | -11 -10 -10 -------- Run | Yrd Mat Sub Hostile Shots Fired 66 | . 57 9 Missed 20 | . 17 3 Hits 46 | . 40 6 Projectile 46 | . 40 6 AOE 3 | . . 3 Damage Taken 741 | . 497 244 Core 273 | . 106 167 Absorbed by Shields . | . . . Core Remaining (%) 100 | 100 . . Volleys Fired 53 | . 47 6 Largest 2 | . 2 2 Hottest 130 | . 130 130 Shots Fired 102 | . 92 10 Gun 102 | . 92 10 Cannon . | . . . Launcher . | . . . Special . | . . . Kinetic 3 | . 3 . Thermal 69 | . 61 8 Explosive . | . . . Electromagnetic 30 | . 28 2 Robot Hit Streak 14 | . 14 14 Robot Miss Streak 9 | . 9 2 Penetration Max . | . . . Secondary Targets 3 | . 3 . Max Gunslinging Chain 1 | . 1 . Shots Hit Robots 78 | . 69 9 Core Hits 92 | . 79 13 Critical Kills . | . . . Critical Parts Destroyed . | . . . Critical Strikes . | . . . Melee Attacks . | . . . Impact . | . . . Slashing . | . . . Piercing . | . . . Sneak Attacks . | . . . Combat Hostiles . | . . . Follow-up Attacks . | . . . Damage Inflicted 1236 | . 1080 156 Guns 1072 | . 916 156 Cannons . | . . . Explosions 164 | . 164 . Melee . | . . . Ramming . | . . . Kinetic . | . . . Thermal 898 | . 768 130 Explosive . | . . . Electromagnetic 338 | . 312 26 Impact . | . . . Slashing . | . . . Piercing . | . . . Highest Corruption . | . . . Average Corruption . | . . . Corruption Purged . | . . . Corruption Blocked . | . . . Overload Shots . | . . . Overflow Damage 16 | . 16 . Projectiles . | . . . Explosions 16 | . 16 . Melee . | . . . Knockbacks . | . . . Impact . | . . . Kinetic . | . . . Secondary . | . . . Self-Inflicted Damage 66 | . 66 . Shots 3 | . 3 . Rammed . | . . . Targets Rammed . | . . . Kicked . | . . . Crushed . | . . . Highest Temperature 434 | . 434 . Average Temperature 121 | . 121 . Received Heat Transfer 222 | . 204 18 Effects 1 | . 1 . Short Circuit 1 | . 1 . Siege Activations . | . . . Martial Activations . | . . . Shielding Activations . | . . . Robots Disrupted . | . . . Combat Hostiles . | . . . Robots Corrupted . | . . . Combat Hostiles . | . . . Parts Fried . | . . . Impact Corruptions . | . . . Robots Melted . | . . . Combat Hostiles . | . . . Parts Melted . | . . . Heat Transferred 1210 | . 1050 160 Parts Sabotaged . | . . . Parts Stolen . | . . . Parts Stripped . | . . . Power Chain Reactions 2 | . 2 . Alert | -11 -10 -10 ------- Run | Yrd Mat Sub Maximum Alert Level 1 | . 1 . Low Security (%) 69 | 100 67 . Level 1 30 | . 32 . Level 2 . | . . . Level 3 . | . . . Level 4 . | . . . Level 5 . | . . . High Security . | . . . Max Security . | . . . Peak Influence 243 | . 243 . Initial . | . . . Average 91 | . 96 . Influence Increases 507 | . 507 . Destroy 0b10 Robot/C 300 | . 300 . Destroy 0b10 Robot/NC 60 | . 60 . Destroy Leader 74 | . 74 . Successful Hack 7 | . 7 . Disable Machine 15 | . 15 . Destroy Structure 36 | . 36 . Lose Combat Pursuer 15 | . 15 . Influence Decreases 507 | . 310 197 Entered New Map 95 | . . 95 Time Decay 372 | . 300 72 Lost Part 40 | . 10 30 Squads Dispatched 3 | . 3 . Investigation 1 | . 1 . Extermination . | . . . Reinforcement 2 | . 2 . Assault . | . . . Garrison . | . . . Intercept . | . . . Searches Triggered . | . . . Construction Impeded . | . . . Haulers Reinforced . | . . . Active Scanning Responses . | . . . Cargo Convoy Interrupts . | . . . Stealth | -11 -10 -10 --------- Run | Yrd Mat Sub Distress Signals 2 | . 2 . Communications Jammed . | . . . Distress Signals . | . . . Times Spotted 29 | . 25 4 Peak Tracking Total 7 | . 7 2 Tactical Retreats 1 | . 1 . Traps | -11 -10 -10 ------- Run | Yrd Mat Sub Traps Triggered 1 | . 1 . Indirectly . | . . . Trap Hack Attempts . | . . . Triggered . | . . . Disarmed . | . . . Reprogrammed . | . . . Reused . | . . . Traps Extracted . | . . . Installed . | . . . Triggered . | . . . Machines | -11 -10 -10 ---------- Run | Yrd Mat Sub Machines Disabled 1 | . 1 . Max in Single Turn 1 | . 1 . Machines Repaired . | . . . Machines Dismantled . | . . . Machines Sabotaged . | . . . Overloaded Fab Kills . | . . . Hacking | -11 -10 -10 --------- Run | Yrd Mat Sub Machines Accessed 2 | . 2 . Terminals 2 | . 2 . Fabricators . | . . . Repair Stations . | . . . Recycling Units . | . . . Scanalyzers . | . . . Garrison Access . | . . . Total Hacks 4 | . 4 . Successful 3 | . 3 . Failed 1 | . 1 . Catastrophic 1 | . 1 . Database Lockouts . | . . . Manual . | . . . Terminals 4 | . 4 . Fabricators . | . . . Repair Stations . | . . . Recycling Units . | . . . Scanalyzers . | . . . Garrison Access . | . . . Terminal Hacks 3 | . 3 . Prototype ID Bank 1 | . 1 . Branch Access Points 1 | . 1 . Alert Level 1 | . 1 . Fabricator Hacks . | . . . Repair Station Hacks . | . . . Recycling Unit Hacks . | . . . Scanalyzer . | . . . Garrison Access Hacks . | . . . Unauthorized Hacks . | . . . Terminals . | . . . Fabricators . | . . . Repair Stations . | . . . Recycling Units . | . . . Scanalyzers . | . . . Garrison Access . | . . . Data Cores Recovered . | . . . Used . | . . . Hacking Detections . | . . . Full Trace Events . | . . . Feedback Events . | . . . Feedback Blocked . | . . . Robot Schematics Acquired . | . . . Robots Built . | . . . Authchips . | . . . Time . | . . . Total Robot Build Rating . | . . . Part Schematics Acquired . | . . . Parts Built . | . . . Authchips . | . . . Time . | . . . Total Part Build Rating . | . . . Parts Repaired . | . . . Time . | . . . Parts Recycled . | . . . Recycled Matter . | . . . Retrieved Matter . | . . . Retrieved Components . | . . . Parts Scanalyzed . | . . . Part Schematics Acquired . | . . . Parts Damaged . | . . . Bothacking | -11 -10 -10 ------------ Run | Yrd Mat Sub Used RIF Installer . | . . . Robots Hacked . | . . . Non-combat . | . . . Combat . | . . . Robot Hacks Applied . | . . . Relay Couplers Released . | . . . Fabnet Peak Effective % . | . . . Robots Rewired . | . . . Allies Hacked . | . . . Hacks Repelled . | . . . Allies | -11 -10 -10 -------- Run | Yrd Mat Sub Total Allies . | . . . Largest Group . | . . . Highest-Rated Group . | . . . Highest-Rated Ally . | . . . Total Orders . | . . . Ally Attacks . | . . . Total Damage . | . . . Kills . | . . . Allies Corrupted . | . . . Allies Melted . | . . . Intel | -11 -10 -10 ------- Run | Yrd Mat Sub Active Infowar (turns) . | . . . Robot Analysis Total . | . . . Derelict Logs Recovered 1 | . . 1 Drone Launches . | . . . Drone Recoveries . | . . . Exploration | -11 -10 -10 ------------- Run | Yrd Mat Sub Turns Passed 1452 | 56 1071 325 Spaces Moved 829 | 35 566 228 Core 62 | 8 . 54 Treads 654 | 27 566 61 Legs . | . . . Wheels . | . . . Hover . | . . . Flight 113 | . . 113 Fastest Speed 50 | 50 160 50 Average Speed 149 | 134 160 125 Slowest Speed 160 | 160 160 160 Overloaded Moves . | . . . Propulsion Burnouts . | . . . Robots Hopped . | . . . Potential Cave-ins . | . . . Cave-ins Triggered . | . . . Exploration Rate (%) 35 | 4 87 16 Regions Visited 2 Branch Regions 1 Pre-discovered Areas 1 | . . 1 Known Exits Taken . | . . . Unknown Exits Taken 2 | 1 1 . Scrap Searched . | . . . Spaces Dug . | . . . Terrain Destroyed 32 | . 32 . Melee . | . . . Projectile . | . . . AOE 32 | . 32 . Terrain Rammed . | . . . Walls Destroyed . | . . . Machines Disabled . | . . . Actions | -11 -10 -10 --------- Run | Yrd Mat Sub Total 942 | 44 640 258 Wait 31 | . 10 21 Move 827 | 34 565 228 Hop . | . . . Pick Up 16 | 5 10 1 Fast Attach . | . . . Attach 9 | 5 2 2 Detach . | . . . Swap 3 | . 3 . Drop 3 | . 3 . Fire 53 | . 47 6 Melee . | . . . Ram . | . . . Kick . | . . . Crush . | . . . Escape Stasis . | . . . Rewire . | . . . Trap . | . . . Miscellaneous . | . . . Route ------- -11/Scrapyard -10/Materials (discovered 5 exits: [*Mat x3] / *Min / [*Sub]) -10/Subcaves History --------- Turn | Location | Event 4 | -11/Scrapyard | Discovered new exit (range 15) 57 | -11/Scrapyard | Entered Materials 286 | -10/Materials | Discovered new exit (range 8) 307 | -10/Materials | Build established: Mutant 551 | -10/Materials | Discovered new exit (range 8) 627 | -10/Materials | Identified exit to Mines 790 | -10/Materials | Discovered new exit (range 7) 1069 | -10/Materials | Discovered new exit (range 9) 1128 | -10/Materials | Entered Subcaves 1129 | -10/Subcaves | Approached by a straggling Scientist 1235 | -10/Subcaves | Core integrity fell below 50% 1243 | -10/Subcaves | Core integrity fell below 20% 1269 | -10/Subcaves | Lost 3 parts (2n1w) 1453 | -10/Subcaves | Destroyed by P2-SLA(R) with Subdweller Machine Gun Last Messages --------------- us both out of this nasty situation. At least I think I can... The group I got separated from was talking about a shortcut back to the UFD." Acquired derelict log, extracted data. World map updated: -8/Materials. FP-91Z(c): "We're getting close, I can feel it." FP-91Z(c): "I think it's somewhere west of here" TK-AT7(u) cries out in pain. TK-AT7(u) destroyed. Broken Lgt. Treads destroyed. Lgt. Treads destroyed. Hvy. EM Pulse Gun destroyed. FP-91Z(c) destroyed. 4Q-I89(R) destroyed. 6D-BDE(R) destroyed. Acquired 4 matter. Acquired 6 matter. Acquired Flight Unit. Flight Unit destroyed. Map ----- +----------------------------------------------------+ | ?????????????????????????????????????????????????? | | ?????????????????????????????????????????????????? | | ?????????????????????????????????????????????????? | | ?????????????????????????????????????????????????? | | ?????????????????????????????????????????????????? | | ?????????????????????????????????????????????????? | | ?????????????????????????????????????????????????? | | ?????????????????????????????????????????????????? | | ?????????????????????????????????????????????????? | | ?????????????????????????????????????????????????? | | ?????????????????????????????????????????????????? | | ?????????????????????????????????????????????????? | | ?????????????????????????????????????????????????? | | ?????????????????????????????????????????????????? | | ?????????????????????????????????????????????????? | | ????######???????????????????????????????????????? | | ??### ##??????????????????????????????????????? | | ?## ##??????????????????????????###????????? | | ?# #????????????????????????? ?????????? | | ## #????????????????????##?? ??????????? | | # ##???????????????????? #? ???????????? | | ## #????????###????????? ## ####$# ??????? | | ## ###??####### ##???????? " ??????? | | # ##?#### ##??????? "???????? | | # #?## ######## #??????????? | | # ### ## ## @ ## #???????????? | | ### ###### R #????????????? | | ??## ####?## ## #???????????? | | ???## ##### ###????????????????? | | ????# ## # ##??????????????????? | | ????## ## ####???????????????????? | | #???## ### #?????????????????????? | | #???# #?## ##?????????????????????? | | #???# ###??## ##??????????????????????? | | #??## ##?????# #???????????????????????? | | ##?# ##?????# ??????????????????????? | | #?# ##??????## ####?????????????????????? | | ### ##????????###????????????????????????? | | ## ##### #????????????????????????????????????? | | #???# #???????????????????????????????????? | | #???## #??????????????????????????????????? | | ##????#####??????????????????????????????????? | | ## #????????????????????????????????????????????? | | #####????????????????????????????????????????????? | | ?????????????????????????????????????????????????? | | ?????????????????????????????????????????????????? | | ?????????????????????????????????????????????????? | | ?????????????????????????????????????????????????? | | ?????????????????????????????????????????????????? | | ?????????????????????????????????????????????????? | +----------------------------------------------------+ Best States ------------- Heat Dissipation 25 Energy Generation 10 Energy Capacity 250 Matter Stores 300 Matter Capacity 300 Sight Range 16 Terrain Scan Density 10 Evasion (%) 40 Targeting Accuracy 12 Recoil Reduction 2 Item Schematics ----------------- None Robot Schematics ------------------ None Fabricated ------------ Nothing Repaired ---------- Nothing Alien Tech Used ----------------- None Achievements -------------- None Challenges ------------ None Game ------ Seed ReflexFortressDeconstructor Manual? 0 Play Time 00:08:02 Cumulative 39.1 hours Start 2025.07.04 @ 20:14:33 End 2025.07.04 @ 20:21:23 Sessions 1 Manual Loads 0 Difficulty Rogue Special Mode None Game No. 185 Rogue 185 Adventurer 0 Explorer 0 Win Type - Total 0 Types 0/0/0/0/0/0/0/0/0/0 Lore% 29 Gallery% 24 Achievement% 20 Wizard Run 0 Options --------- Layout 2 ASCII 0 Keyboard 0 Movement Mouse Keybinds 0 Fullscreen 1 Font 24/Smallcaps Map View 50x44 Zoom Use 0% Tactical HUD 0 Map Filters NONE Filters NONE Steam 1 RUN: 4d83f082-1dd7-43bf-84d2-6de396979830